[Event "75th Argentine Women-ch 2024"]
[Site "Buenos Aires"]
[Date "2024.11.29"]
[Round "9.9"]
[White "Quiroga Ortiz, Isabella"]
[Black "Palomares, Lujan"]
[Result "1/2-1/2"]
[ECO "D05"]
[WhiteElo "1508"]
[BlackElo "1633"]
[Annotator "NA RC"]
[PlyCount "102"]
[EventDate "2024.11.21"]
[EventType "swiss"]
[EventCountry "ARG"]
[SourceTitle "playchess.com"]
[Source "ChessBase"]
[SourceQuality "1"]
[TimeControl "5400+30"]

1. e4 {[%emt 0:00:06]} c6 {[%emt 0:11:47]} 2. d4 {[%emt 0:00:09]} d5 {[%emt 0:00:30]} 3. exd5 {[%emt 0:00:32]} cxd5 {[%emt 0:00:38]} 4. Bd3 {[%emt 0:00:11]} Nc6 {[%emt 0:01:21]} 5. c3 {[%emt 0:00:12]} Nf6 {[%emt 0:02:43]} 6. Nf3 {[%emt 0:00:54]} e6 {[%emt 0:03:34]} 7. O-O {[%emt 0:01:02]} Qc7 {[%emt 0:01:57]} 8. Nbd2 {[%emt 0:01:28]} Bd6 {[%emt 0:01:09]} 9. Re1 {[%emt 0:01:38]} O-O {[%emt 0:00:34]} 10. Nf1 {[%emt 0:02:28]} h6 {[%emt 0:00:49]} 11. h3 {[%emt 0:02:13]} Re8 {[%emt 0:01:36]} 12. Qb3 {[%emt 0:06:20]} Bd7 {[%emt 0:02:18]} 13. Bd2 {[%emt 0:02:55]} Na5 {[%emt 0:04:19]} 14. Qc2 {[%emt 0:00:07]} Rac8 {[%emt 0:02:24]} 15. Ne3 {[%emt 0:03:54]} Nc6 {[%emt 0:02:23]} 16. a3 {[%emt 0:10:23]} e5 {[%emt 0:06:27]} 17. dxe5 {[%emt 0:00:38]} Nxe5 {[%emt 0:00:08]} 18. Nd4 {[%emt 0:04:27]} Nxd3 {[%emt 0:07:48]} 19. Qxd3 {[%emt 0:00:06]} Bc5 {[%emt 0:08:54]} 20. Rac1 {[%emt 0:05:48]} Qb6 {[%emt 0:03:50]} 21. b4 {[%emt 0:01:22]} Bxd4 {[%emt 0:00:58]} 22. cxd4 {[%emt 0:00:12]} Bb5 {[%emt 0:02:02]} 23. Qb3 {[%emt 0:00:35]} Qxd4 {[%emt 0:03:58]} 24. Bc3 {[%emt 0:00:35]} Qd3 {[%emt 0:03:58]} 25. Red1 {[%emt 0:01:21]} Qg6 {[%emt 0:06:54]} 26. Bxf6 {[%emt 0:02:32]} Qxf6 {[%emt 0:00:26]} 27. Rxc8 {[%emt 0:03:54]} Rxc8 {[%emt 0:00:56]} 28. Nxd5 {[%emt 0:00:15]} Qe6 {[%emt 0:01:39]} 29. Qe3 {[%emt 0:00:27]} Qxe3 {[%emt 0:00:53]} 30. Nxe3 {[%emt 0:00:13]} Rc3 {[%emt 0:02:56]} 31. Rd8+ {[%emt 0:06:08]} Kh7 {[%emt 0:01:15]} 32. Rb8 {[%emt 0:02:32]} Bc6 {[%emt 0:03:48]} 33. a4 {[%emt 0:01:05]} a6 {[%emt 0:00:54]} 34. b5 {[%emt 0:01:36]} axb5 {[%emt 0:00:17]} 35. axb5 {[%emt 0:00:07]} Bxb5 {[%emt 0:02:01]} 36. Rxb7 {[%emt 0:00:09]} Be8 {[%emt 0:00:14]} 37. Re7 {[%emt 0:00:49]} Rc8 {[%emt 0:01:14]} 38. Ng4 {[%emt 0:00:31]} Kg6 {[%emt 0:03:07]} 39. Rb7 {[%emt 0:03:26]} f6 {[%emt 0:01:26]} 40. Rb6 {[%emt 0:01:33]} Rc6 {[%emt 0:01:16]} 41. Rxc6 {[%emt 0:02:06]} Bxc6 {[%emt 0:00:06]} 42. Ne3 {[%emt 0:00:32]} h5 {[%emt 0:00:43]} 43. Kh2 {[%emt 0:01:37]} Kg5 {[%emt 0:01:24]} 44. h4+ {[%emt 0:02:56]} Kf4 {[%emt 0:01:22]} 45. Nf1 {[%emt 0:04:38]} g5 {[%emt 0:01:07]} 46. hxg5 {[%emt 0:00:32]} fxg5 {[%emt 0:00:09]} 47. Ng3 {[%emt 0:01:22]} Kg4 {[%emt 0:00:47]} 48. f3+ {[%emt 0:02:25]} Bxf3 {[%emt 0:00:20]} 49. gxf3+ {[%emt 0:00:05]} Kxf3 {[%emt 0:00:04]} 50. Nxh5 {[%emt 0:00:06]} g4 {[%emt 0:00:14]} 51. Ng3 {[%emt 0:00:23]} Kf2 {[%emt 0:00:11]} 1/2-1/2

[Event "75th Argentine Women-ch 2024"]
[Site "Buenos Aires"]
[Date "2024.11.29"]
[Round "9.10"]
[White "Herrera, Solange"]
[Black "Perez Mosqueda, Valeria Ritzabeth"]
[Result "1-0"]
[ECO "D12"]
[WhiteElo "1880"]
[BlackElo "1476"]
[Annotator "NA RC"]
[PlyCount "69"]
[EventDate "2024.11.21"]
[EventType "swiss"]
[EventCountry "ARG"]
[SourceTitle "playchess.com"]
[Source "ChessBase"]
[SourceQuality "1"]
[TimeControl "5400+30"]

1. d4 {[%emt 0:19:19]} d5 {[%emt 0:00:12]} 2. e3 {[%emt 0:00:05]} Nf6 {[%emt 0:00:10]} 3. c4 {[%emt 0:00:02]} Bf5 {[%emt 0:01:30]} 4. Nc3 {[%emt 0:00:08]} e6 {[%emt 0:01:27]} 5. Nf3 {[%emt 0:00:06]} c6 {[%emt 0:01:13]} 6. cxd5 {[%emt 0:00:31]} exd5 {[%emt 0:00:19]} 7. Bd3 {[%emt 1:13:49]} Bxd3 {[%emt 0:00:14]} 8. Qxd3 {[%emt 0:00:00]} Bd6 {[%emt 0:00:15]} 9. O-O {[%emt 0:00:00]} O-O {[%emt 0:00:24]} 10. e4 {[%emt 0:00:00]} dxe4 {[%emt 0:00:28]} 11. Nxe4 {[%emt 0:00:00]} Nxe4 {[%emt 0:00:29]} 12. Qxe4 {[%emt 0:00:00]} Nd7 {[%emt 0:00:25]} 13. Bg5 {[%emt 0:00:00]} Nf6 {[%emt 0:00:41]} 14. Qh4 {[%emt 0:03:30]} Be7 {[%emt 0:00:49]} 15. Rfe1 {[%emt 0:00:00]} h6 {[%emt 0:00:26]} 16. Bxf6 {[%emt 0:00:00]} Bxf6 {[%emt 0:00:09]} 17. Qg4 {[%emt 0:00:00]} Qb6 {[%emt 0:00:54]} 18. Ne5 {[%emt 0:00:00]} Rad8 {[%emt 0:00:48]} 19. Nd7 {[%emt 0:00:00]} Rxd7 {[%emt 0:03:24]} 20. Qxd7 {[%emt 0:00:00]} Bxd4 {[%emt 0:00:19]} 21. Re2 {[%emt 0:00:00]} Rd8 {[%emt 0:00:50]} 22. Re8+ {[%emt 0:00:00]} Rxe8 {[%emt 0:00:38]} 23. Qxe8+ {[%emt 0:00:00]} Kh7 {[%emt 0:00:13]} 24. Qxf7 {[%emt 0:00:00]} Qxb2 {[%emt 0:00:33]} 25. Re1 {[%emt 0:00:00]} Bb6 {[%emt 0:01:06]} 26. Qf5+ {[%emt 0:00:00]} g6 {[%emt 0:00:37]} 27. Re7+ {[%emt 0:00:00]} Qg7 {[%emt 0:01:04]} 28. Rxg7+ {[%emt 0:00:00]} Kxg7 {[%emt 0:00:04]} 29. Qd7+ {[%emt 0:00:00]} Kf6 {[%emt 0:00:07]} 30. Qxb7 {[%emt 0:00:00]} Ke6 {[%emt 0:00:21]} 31. Qxc6+ {[%emt 0:00:00]} Kf5 {[%emt 0:00:06]} 32. Kf1 {[%emt 0:00:00]} a6 {[%emt 0:00:25]} 33. h4 {[%emt 0:00:00]} g5 {[%emt 0:00:19]} 34. hxg5 {[%emt 0:00:00]} Kxg5 {[%emt 0:00:12]} 35. f3 {[%emt 0:00:00]} 1-0